bitfinex-derivatives/quotes_SOLF0:USTF0_20250514
["timestamp","ask_amount","ask_price","bid_price","bid_amount"]
[1747232008216,73.94,177.92,177.82,2.10394678]
[1747232008417,73.94,177.92,177.86,5.6214]
[1747232008607,5.6205,177.9,177.86,5.6214]
[1747232009016,5.62,177.91,177.87,7.72374526]
[1747232009220,73.74,177.93,177.8,74.56]
[1747232009517,5.6202,177.91,177.81,2.10248812]
[1747232009717,73.74,177.93,177.82,5.64908812]
[1747232009918,73.74,177.93,177.83,2.10248812]
[1747232010120,5.6205,177.9,177.85,5.6216]
[1747232010309,73.74,177.93,177.86,2.1019159]
[1747232010618,73.74,177.93,177.87,2.10129281]
[1747232010821,73.74,177.93,177.83,1.926]
[1747232011019,73.74,177.93,177.84,2.10128506]
[1747232011219,73.74,177.93,177.85,2.10128506]
[1747232011519,5.6204,177.9,177.86,7.72278506]
[1747232011721,5.6204,177.9,177.87,2.10128506]
[1747232011921,73.74,177.93,177.87,5.621]
[1747232012116,73.74,177.93,177.83,1.926]
[1747232012317,73.74,177.93,177.84,2.10067991]
[1747232012517,73.74,177.93,177.85,2.1001638]
[1747232012718,84.85418176,177.93,177.82,3.5466]
[1747232013018,5.6218,177.86,177.83,2.10039424]
[1747232013218,362.0,177.92,177.84,2.10039424]
[1747232013417,362.0,177.91,177.82,3.5466]
[1747232013618,362.0,177.91,177.83,2.10047224]
[1747232013820,362.0,177.91,177.82,3.5466]
[1747232014021,5.6214,177.87,177.83,7.72295099]
[1747232014222,362.0,177.91,177.83,5.6225]
[1747232014523,362.0,177.91,177.82,3.5466]
[1747232014718,362.0,177.91,177.83,2.10031587]
[1747232014921,362.0,177.91,177.8,74.56]
[1747232015119,362.0,177.91,177.81,7.72342136]
[1747232015322,362.0,177.91,177.82,2.10042136]
[1747232015521,5.623,177.82,177.76,3.7583]
[1747232015720,72.9,177.85,177.77,2.1003204]
[1747232015917,72.9,177.85,177.78,2.10069667]
[1747232016125,72.9,177.85,177.79,2.10069667]
[1747232016321,5.6227,177.83,177.8,2.10069667]
[1747232016523,72.9,177.85,177.81,2.10088736]
[1747232016722,72.9,177.85,177.82,2.10088736]
[1747232016921,78.5219,177.85,177.83,2.10088736]
[1747232017122,5.6219,177.85,177.82,5.6226]
[1747232017418,5.6213,177.87,177.76,3.7583]
[1747232017621,362.0,177.91,177.77,2.1011963]
[1747232017821,72.6,177.9,177.78,74.7011963]
[1747232018119,5.6217,177.86,177.79,2.1011963]
[1747232018421,74.56,177.95,177.8,76.6611963]
[1747232018620,72.52,177.93,177.81,2.1011963]
[1747232018932,72.48,177.94,177.82,2.1011963]
[1747232019120,72.48,177.94,177.83,74.5411963]
[1747232019320,72.48,177.94,177.84,2.1011963]
[1747232019521,72.48,177.94,177.85,76.66010789]
[1747232019720,72.48,177.94,177.86,2.10010789]
[1747232020022,72.48,177.94,177.87,2.10010789]
[1747232020223,72.48,177.94,177.85,74.56]
[1747232020424,72.48,177.94,177.86,2.1001591]
[1747232020621,72.48,177.94,177.85,74.56]
[1747232020824,72.48,177.94,177.86,2.10004182]
[1747232021026,72.48,177.94,177.85,74.56]
[1747232021324,72.48,177.94,177.86,2.10002584]
[1747232021520,72.48,177.94,177.85,80.1816]
[1747232021718,72.48,177.94,177.86,2.100259]
[1747232021917,72.48,177.94,177.85,74.56]
[1747232022117,72.48,177.94,177.86,7.72155869]
[1747232022320,72.48,177.94,177.85,74.56]
[1747232022732,5.6212,177.88,177.85,74.56]
[1747232022917,362.0,177.93,177.86,2.10087393]
[1747232023122,362.0,177.93,177.85,74.56]
[1747232023318,362.0,177.93,177.86,2.10085756]
[1747232023622,362.0,177.93,177.85,74.56]
[1747232023823,5.6212,177.87,177.86,2.10145078]
[1747232024025,5.6212,177.87,177.85,74.56]
[1747232024225,362.0,177.93,177.85,74.56]
[1747232024426,5.621,177.88,177.86,2.10159656]
[1747232024629,362.0,177.93,177.85,74.56]
[1747232024927,5.6205,177.9,177.87,5.6209]
[1747232025120,362.0,177.93,177.85,74.56]
[1747232025317,362.0,177.93,177.86,2.10275022]
[1747232025519,5.6204,177.9,177.87,2.10275022]
[1747232025729,5.6204,177.9,177.88,2.10275022]
[1747232025924,5.6204,177.9,177.85,74.56]
[1747232026129,5.6204,177.9,177.86,2.10272095]
[1747232026328,362.0,177.93,177.87,2.10272095]
[1747232026528,362.0,177.93,177.87,5.621]
[1747232026829,5.6206,177.89,177.85,74.56]
[1747232027032,5.6206,177.89,177.86,7.72443852]
[1747232027326,362.0,177.93,177.85,74.56]
[1747232027527,362.0,177.93,177.86,2.10379769]
[1747232027732,362.0,177.93,177.87,2.10379909]
[1747232027930,362.0,177.93,177.84,3.7375]
[1747232028133,5.6209,177.88,177.85,2.10377539]
[1747232028328,362.0,177.99,177.86,73.84377539]
[1747232028526,362.0,177.98,177.86,71.74]
[1747232028833,5.6186,177.96,177.87,2.10481952]
[1747232029035,362.0,177.98,177.88,2.10481952]
[1747232029234,71.16,177.97,177.89,2.10481952]
[1747232029438,71.16,177.97,177.9,2.10481952]
[1747232029634,71.16,177.97,177.91,2.10481952]
[1747232029836,71.16,177.97,177.92,7.72421952]
[1747232030134,5.6186,177.96,177.92,5.6194]
[1747232030337,71.16,177.97,177.92,5.6194]
[1747232030527,71.16,177.97,177.88,71.74]
[1747232030726,82.27418176,177.97,177.89,2.10599589]
[1747232030935,5.6202,177.91,177.87,5.6209]
[1747232031231,70.94,177.92,177.88,2.10631632]
[1747232031435,70.94,177.92,177.85,77.3618]
[1747232031633,70.94,177.92,177.86,2.10809192]
[1747232031833,70.94,177.92,177.87,2.10809192]
[1747232032033,70.94,177.92,177.88,2.10809192]
[1747232032233,70.94,177.92,177.89,2.10809192]
[1747232032434,70.94,177.92,177.9,2.10809192]
[1747232032737,70.94,177.92,177.91,2.10809192]
[1747232033535,76.5596,177.92,177.91,2.10809192]
[1747232033936,70.94,177.92,177.85,71.74]
[1747232034137,70.94,177.92,177.86,2.109085]
[1747232034337,70.94,177.92,177.87,2.109085]
[1747232034542,70.94,177.92,177.88,2.109085]
[1747232034734,70.94,177.92,177.89,2.11014639]
[1747232035031,70.94,177.92,177.9,2.11014639]
[1747232035237,5.621,177.88,177.83,71.74]
[1747232035432,5.621,177.88,177.84,2.11018272]
[1747232035627,5.621,177.88,177.85,7.73178272]
[1747232035827,5.6207,177.89,177.86,2.11018272]
[1747232036133,70.94,177.92,177.89,5.6204]
[1747232036332,70.94,177.92,177.9,2.11007641]
[1747232036536,70.94,177.92,177.91,2.11007641]
[1747232037235,70.94,177.92,177.91,7.72997641]
[1747232037535,436.1862,177.96,177.91,7.72997641]
[1747232037729,436.1862,177.96,177.92,2.11007641]
[1747232037930,436.1862,177.96,177.85,70.54]
[1747232038135,436.1862,177.96,177.86,2.10964859]
[1747232038338,5.6196,177.92,177.87,2.10964859]
[1747232038640,436.1862,177.96,177.88,7.73034859]
[1747232038839,436.1862,177.96,177.89,2.10964859]
[1747232039036,436.1862,177.96,177.9,2.10964859]
[1747232039239,5.6211,177.88,177.83,71.72]
[1747232039438,5.6211,177.88,177.84,2.10995398]
[1747232039642,5.6211,177.88,177.85,2.10995398]
[1747232039939,5.6211,177.88,177.86,2.10995398]
[1747232040139,5.6211,177.88,177.87,2.10995398]
[1747232040342,70.36,177.91,177.87,2.10995398]
[1747232040540,70.36,177.91,177.88,2.10995398]
[1747232040738,70.36,177.91,177.89,2.10995398]
[1747232040937,70.36,177.91,177.83,71.72]
[1747232041138,70.36,177.91,177.84,2.10985392]
[1747232041340,5.6215,177.86,177.85,2.10985392]
[1747232042037,70.36,177.91,177.79,71.72]
[1747232042038,373.11418176,177.9,177.79,71.72]
[1747232042239,362.0,177.89,177.79,71.72]
[1747232042438,362.0,177.89,177.8,5.6233]
[1747232042638,1.8935,177.88,177.79,71.72]
[1747232042842,11.11418176,177.86,177.74,1.8837]
[1747232043047,5.6236,177.8,177.76,5.6244]
[1747232043342,362.0,177.84,177.76,5.6244]
[1747232043646,5.6238,177.79,177.76,5.6244]
[1747232044036,362.0,177.84,177.75,5.6249]
[1747232044337,5.624,177.79,177.75,5.6249]
[1747232044733,362.0,177.84,177.76,5.6246]
[1747232045133,11.11418176,177.82,177.64,485.88]
[1747232045332,362.0,177.81,177.7,71.74]
[1747232045641,431.74,177.8,177.69,5.6267]
[1747232045941,11.11418176,177.78,177.67,71.74]
[1747232046145,362.0,177.77,177.64,485.88]
[1747232046338,362.0,177.77,177.65,71.74]
[1747232046534,5.6254,177.74,177.65,71.74]
[1747232046738,69.76,177.75,177.65,71.74]
[1747232047445,362.0,177.77,177.65,71.74]
[1747232047944,69.74,177.79,177.65,82.85418176]
[1747232048345,431.72,177.83,177.65,82.85418176]
[1747232049846,431.72,177.83,177.65,11.11418176]
[1747232050146,431.72,177.83,177.73,5.6254]
[1747232050344,373.11418176,177.82,177.71,71.76]
[1747232050546,71.76,177.81,177.72,5.6259]
[1747232050747,71.76,177.81,177.69,71.76]
[1747232050948,5.6257,177.73,177.69,71.76]
[1747232051240,69.74,177.77,177.69,71.76]
[1747232051439,5.626,177.72,177.69,71.76]
[1747232051947,5.6253,177.74,177.69,77.3868]
[1747232052246,1.8592,177.76,177.69,71.76]
[1747232053154,1.8592,177.76,177.65,71.76]
[1747232053155,73.6192,177.76,177.65,71.76]
[1747232053346,362.0,177.75,177.64,485.88]
[1747232053746,11.11418176,177.74,177.64,485.88]
[1747232054248,5.6274,177.68,177.64,5.6284]
[1747232054450,69.74,177.7,177.63,1.7961]
[1747232054838,5.627,177.69,177.65,5.6279]
[1747232055547,69.74,177.7,177.63,1.7961]
[1747232056050,362.0,177.73,177.63,1.7961]
[1747232056250,431.74,177.73,177.63,1.7961]
[1747232057149,5.6272,177.69,177.64,5.6284]
[1747232057650,5.6272,177.68,177.63,1.7961]
[1747232058050,431.74,177.73,177.62,69.74]
[1747232058751,5.6272,177.69,177.64,5.6284]
[1747232058953,431.74,177.73,177.64,5.6284]
[1747232059154,69.74,177.72,177.64,5.6284]
[1747232059355,5.6275,177.68,177.64,5.6284]
[1747232059557,69.74,177.72,177.64,5.6284]
[1747232059755,5.6275,177.68,177.62,69.74]
[1747232059957,69.74,177.72,177.62,69.74]
[1747232060256,69.74,177.72,177.65,5.6279]
[1747232060657,5.6274,177.68,177.62,69.74]
[1747232061757,69.74,177.72,177.67,5.6275]
[1747232061954,69.74,177.72,177.62,69.74]
[1747232062358,5.6266,177.7,177.62,69.74]
[1747232062560,69.74,177.72,177.62,69.74]
[1747232062959,5.6271,177.69,177.65,5.6279]
[1747232063149,5.6271,177.69,177.62,69.74]
[1747232063357,69.74,177.72,177.62,69.74]
[1747232063558,5.6263,177.71,177.62,69.74]
[1747232063857,139.5,177.72,177.62,69.74]
[1747232064058,5.6263,177.71,177.62,69.74]
[1747232064362,139.5,177.72,177.62,69.74]
[1747232064562,145.126,177.72,177.68,5.627]
[1747232064764,75.366,177.72,177.62,69.74]
[1747232064953,69.74,177.72,177.62,69.74]
[1747232065157,431.76,177.73,177.63,69.76]
[1747232065353,362.0,177.73,177.64,1.7664]
[1747232065762,362.0,177.73,177.71,5.6261]
[1747232065963,139.52,177.76,177.67,69.76]
[1747232066165,69.76,177.76,177.68,3.6016]
[1747232066463,69.76,177.76,177.73,5.6255]
[1747232066659,362.6071,177.86,177.74,69.76]
[1747232066867,5.6219,177.85,177.75,69.76]
[1747232067066,5.6219,177.85,177.76,75.2542]
[1747232067359,5.6219,177.85,177.81,5.6229]
[1747232067563,69.76,177.87,177.81,69.76]
[1747232067865,362.0,177.91,177.81,69.76]
[1747232068066,431.76,177.91,177.85,5.6216]
[1747232068263,431.76,177.91,177.81,69.76]
[1747232068457,431.76,177.91,177.84,5.6219]
[1747232068658,431.76,177.91,177.81,69.76]
[1747232070162,431.76,177.91,177.77,69.74]
[1747232070662,11.11418176,177.89,177.79,5.6237]
[1747232070863,431.76,177.91,177.77,69.74]
[1747232071461,11.11418176,177.86,177.76,1.7664]
[1747232071764,5.6232,177.81,177.77,5.6243]
[1747232071965,139.46,177.85,177.76,1.7664]
[1747232072170,139.46,177.85,177.77,69.74]
[1747232072364,69.72,177.85,177.77,69.74]
[1747232072766,69.72,177.85,177.72,69.74]
[1747232072767,431.74,177.84,177.72,69.74]
[1747232072962,433.5963,177.84,177.72,69.74]
[1747232074068,5.6235,177.8,177.76,5.6246]
[1747232074265,433.5963,177.84,177.72,69.74]
[1747232074569,5.6239,177.79,177.75,5.6249]
[1747232074867,433.5963,177.84,177.72,69.74]
[1747232075367,5.6236,177.8,177.76,5.6246]
[1747232075662,433.5963,177.84,177.72,69.74]
[1747232076069,5.6225,177.83,177.72,69.74]
[1747232076369,362.0,177.84,177.72,69.74]
[1747232076569,5.6238,177.79,177.72,69.74]
[1747232076962,362.0,177.84,177.72,69.74]
[1747232077166,5.6232,177.81,177.72,69.74]
[1747232077367,362.0,177.84,177.72,69.74]
[1747232077666,362.0,177.84,177.8,5.6233]
[1747232078070,362.0,177.84,177.78,69.74]
[1747232078269,362.0,177.84,177.78,75.3639]
[1747232078571,362.0,177.84,177.7,1.7457]
[1747232078769,362.0,177.84,177.71,139.46]
[1747232078971,5.6236,177.8,177.75,5.6247]
[1747232079164,362.0,177.84,177.71,139.46]
[1747232079566,5.6243,177.78,177.71,139.46]
[1747232079767,362.0,177.84,177.72,69.74]
[1747232079968,433.6616,177.83,177.72,69.74]
[1747232080271,433.6616,177.83,177.72,75.3659]
[1747232080667,5.6251,177.75,177.72,69.74]
[1747232080871,69.72,177.78,177.72,69.74]
[1747232081367,75.3441,177.78,177.72,69.74]
[1747232081575,69.72,177.78,177.72,69.74]
[1747232082073,5.6246,177.77,177.73,5.6254]
[1747232082873,5.6247,177.76,177.72,75.3658]
[1747232083073,362.0,177.8,177.72,69.74]
[1747232084173,373.11418176,177.79,177.58,11.2604]
[1747232084468,11.11418176,177.75,177.62,1.745]
[1747232084675,69.72,177.74,177.62,1.745]
[1747232085678,5.6262,177.72,177.68,5.6271]
[1747232085980,69.72,177.74,177.65,69.7]
[1747232086179,5.6268,177.7,177.66,5.6278]
[1747232086477,69.72,177.74,177.65,69.7]
[1747232086986,5.6266,177.7,177.67,5.6275]
[1747232087180,69.72,177.74,177.67,5.6275]
[1747232087379,69.72,177.74,177.65,69.7]
[1747232088086,5.6262,177.72,177.68,5.6271]
[1747232088383,69.72,177.74,177.68,5.6271]
[1747232088779,5.6262,177.72,177.68,5.6271]
[1747232088980,69.72,177.74,177.66,5.6275]
[1747232089186,431.72,177.77,177.65,69.7]
[1747232089988,5.6254,177.74,177.65,69.7]
[1747232090287,432.08,177.77,177.65,69.7]
[1747232090487,432.08,177.77,177.66,1.8525]
[1747232090686,362.0,177.77,177.67,70.06]
[1747232090987,362.0,177.77,177.67,71.8144]
[1747232091184,362.0,177.77,177.72,5.6257]
[1747232091376,362.0,177.77,177.71,69.72]
[1747232091987,362.0,177.77,177.67,1.7544]
[1747232092181,70.08,177.76,177.68,69.72]
[1747232094087,5.6269,177.69,177.65,5.6279]
[1747232094289,70.08,177.76,177.65,5.6279]
[1747232094485,70.08,177.76,177.64,75.3484]
[1747232094788,11.11418176,177.74,177.64,69.72]
[1747232094988,11.11418176,177.74,177.61,5.6293]
[1747232095189,11.11418176,177.7,177.6,69.72]
[1747232095391,5.6287,177.64,177.6,69.72]
[1747232095582,362.0,177.68,177.6,5.6295]
[1747232095885,362.0,177.68,177.56,555.8]
[1747232096089,5.6285,177.64,177.61,5.6293]
[1747232096787,5.6285,177.64,177.56,555.8]
[1747232097084,362.0,177.68,177.56,555.8]
[1747232097085,5.6282,177.65,177.56,555.8]
[1747232097289,362.0,177.68,177.56,555.8]
[1747232097495,5.6276,177.67,177.56,555.8]
[1747232097791,5.6276,177.67,177.63,5.6286]
[1747232097987,362.0,177.68,177.56,555.8]
[1747232098392,362.0,177.68,177.57,11.11418176]
[1747232098786,69.74,177.73,177.56,555.8]
[1747232098990,5.6251,177.75,177.61,11.11418176]
[1747232099194,5.6251,177.75,177.62,139.52]
[1747232099491,362.0,177.78,177.62,139.52]
[1747232099792,5.625,177.75,177.63,5.5189]
[1747232100090,431.74,177.78,177.63,5.5189]
[1747232100284,431.74,177.78,177.65,11.11418176]
[1747232100590,437.3643,177.78,177.66,2.04674237]
[1747232100793,431.74,177.78,177.67,141.52663492]
[1747232100989,431.74,177.78,177.68,2.04663492]
[1747232101190,5.6246,177.77,177.72,5.6256]
[1747232101386,5.6246,177.77,177.73,2.04669654]
[1747232101586,5.6246,177.77,177.67,139.48]
[1747232101787,5.6246,177.77,177.72,5.6257]
[1747232102090,431.74,177.78,177.67,139.48]
[1747232102289,431.74,177.78,177.68,2.04715715]
[1747232102495,431.74,177.78,177.69,2.04715715]
[1747232102682,11.11418176,177.77,177.63,5.5189]
[1747232102883,11.11418176,177.77,177.65,69.72]
[1747232103089,5.6276,177.67,177.65,69.72]
[1747232103291,69.74,177.71,177.65,69.72]
[1747232103491,69.74,177.71,177.66,2.04757417]
[1747232103687,5.627,177.69,177.65,75.348]
[1747232103889,69.74,177.71,177.65,69.72]
[1747232104186,5.6271,177.69,177.64,5.6282]
[1747232104387,69.74,177.71,177.63,1.8066]
[1747232104587,11.11418176,177.69,177.53,69.72]
[1747232104785,69.72,177.68,177.54,2.04814226]
[1747232104985,11.11418176,177.65,177.55,2.04814226]
[1747232105190,431.74,177.64,177.52,1.9032]
[1747232105393,11.11418176,177.61,177.53,2.04749346]
[1747232105596,11.11418176,177.61,177.52,5.6322]
[1747232105795,362.0,177.6,177.5,26.4252262]
[1747232106096,69.74,177.59,177.5,26.4252262]
[1747232106293,5.6307,177.57,177.51,7.67840569]
[1747232106489,11.11418176,177.55,177.45,17.59167621]
[1747232106796,11.11418176,177.51,177.37,24.8093262]
[1747232107095,69.72,177.5,177.38,2.04700163]
[1747232107296,194.34,177.49,177.38,2.04350533]
[1747232107496,5.6344,177.46,177.39,5.6361]
[1747232107696,69.74,177.45,177.37,22.9061262]
[1747232107901,75.9948,177.44,177.37,22.9061262]
[1747232108092,70.36,177.44,177.37,22.9061262]
[1747232108292,88.5133505,177.44,177.37,22.9061262]
[1747232108494,18.1533505,177.4,177.37,22.9061262]
[1747232108695,140.0,177.39,177.35,52.85045241]
[1747232109991,18.1533505,177.4,177.35,52.85045241]
[1747232110192,18.1533505,177.36,177.18,19.82343938]
[1747232110399,139.94,177.35,177.18,19.82343938]
[1747232110596,139.94,177.35,177.18,40.00690194]
[1747232110799,139.94,177.35,177.19,2.03011206]
[1747232111100,145.5777,177.35,177.28,5.6397]
[1747232111303,18.1533505,177.33,177.18,19.82343938]
[1747232111695,70.52,177.32,177.18,19.82343938]
[1747232111998,384.0,177.34,177.18,90.34343938]
[1747232112195,454.48,177.34,177.18,19.82343938]
[1747232112399,454.48,177.34,177.19,140.22]
[1747232112800,5.6383,177.33,177.25,5.6405]
[1747232112997,70.48,177.34,177.13,5.3618]
[1747232113300,18.1533505,177.33,177.14,140.14]
[1747232113500,70.48,177.34,177.15,2.02155623]
[1747232113800,76.1182,177.34,177.15,2.02155623]
[1747232113997,18.1533505,177.39,177.14,140.14]
[1747232114203,140.14,177.38,177.15,2.01793629]
[1747232114405,18.1533505,177.35,177.15,2.01793629]
[1747232114598,18.1533505,177.35,177.14,140.14]
[1747232114796,18.1533505,177.35,177.25,5.6408]
[1747232114997,18.1533505,177.35,177.21,69.82]
[1747232115204,18.1533505,177.31,177.21,69.82]
[1747232115404,5.6403,177.27,177.21,75.4619]
[1747232115703,70.6,177.3,177.21,69.82]
[1747232116196,70.6,177.3,177.17,70.82]
[1747232116400,5.6415,177.24,177.16,5.6437]
[1747232116599,71.32,177.23,177.16,5.6437]
[1747232117004,71.32,177.23,177.13,76.2018]
[1747232118703,71.32,177.23,177.16,5.6437]
[1747232118901,71.32,177.23,177.0,1000.0]
[1747232118902,18.21348629,177.19,177.0,1000.0]
[1747232119203,18.21666158,177.09,177.0,1000.0]
[1747232119394,18.21666158,177.12,177.0,1000.0]
[1747232119597,144.02,177.11,177.0,1000.0]
[1747232120398,18.21666158,177.12,177.0,1000.0]
[1747232120605,124.0,177.2,177.0,1000.0]
[1747232120606,18.21666158,177.16,177.0,1000.0]
[1747232120799,18.21666158,177.13,177.0,1000.0]
[1747232121000,5.6472,177.05,177.0,1000.0]
[1747232121197,73.6,177.04,177.0,1000.0]
[1747232123110,18.21666158,177.05,177.0,1000.0]
[1747232123404,73.86,177.04,177.0,1000.0]
[1747232123806,79.5076,177.04,177.0,1000.0]
[1747232124003,73.86,177.04,177.0,1000.0]
[1747232124604,74.36,177.07,177.0,1000.0]
[1747232125305,74.3,177.13,177.0,1000.0]
[1747232125511,75.26,177.14,177.0,899.47152748]
[1747232125911,75.26,177.14,177.1,5.6454]
[1747232126404,362.0,177.18,177.05,91.83666158]
[1747232126604,362.0,177.18,177.05,73.62]
[1747232128008,73.62,177.17,177.05,73.62]
[1747232128608,73.62,177.17,177.08,5.6462]
[1747232128811,73.62,177.17,177.05,73.62]
[1747232129208,437.46,177.18,177.05,73.62]
[1747232129713,437.46,177.18,177.06,5.6468]
[1747232130013,437.46,177.18,177.05,73.62]
[1747232131106,362.0,177.17,177.05,73.62]
[1747232131303,18.21666158,177.16,177.01,149.48]
[1747232131502,73.64,177.15,177.01,149.48]
[1747232131712,18.21666158,177.12,177.01,73.64]
[1747232131914,76.1,177.11,177.01,73.64]
[1747232132308,94.81666158,177.1,177.0,899.47152748]
[1747232132714,362.0,177.09,177.0,899.47152748]
[1747232134114,18.21666158,177.14,177.0,899.47152748]
[1747232134319,153.88,177.13,177.0,899.47152748]
[1747232134917,5.6463,177.08,177.04,5.6473]
[1747232135110,5.6463,177.08,177.01,1.9278]
[1747232135310,76.62,177.13,177.01,1.9278]
[1747232135512,5.6479,177.03,177.0,899.47152748]
[1747232135818,77.34,177.04,177.0,899.47152748]
[1747232136818,76.62,177.03,177.0,899.47152748]
[1747232137212,5.6485,177.01,177.0,899.47152748]
[1747232137411,18.21666158,177.08,177.0,899.47152748]
[1747232137716,154.46,177.07,177.0,899.47152748]
[1747232138123,76.64,177.07,177.0,899.47152748]
[1747232138313,77.76,177.06,177.01,5.6484]
[1747232138520,77.76,177.06,177.0,899.47152748]
[1747232138719,77.76,177.06,177.01,1.7925]
[1747232138915,5.6473,177.05,177.01,1.7925]
[1747232139222,77.76,177.06,177.01,1.7925]
[1747232140020,18.21666158,177.16,177.01,1.7925]
[1747232140221,487.98,177.2,177.02,3.6682]
[1747232140414,154.92,177.19,177.03,76.64]
[1747232140720,5.6453,177.12,177.03,76.64]
[1747232141022,84.1049,177.13,177.08,5.6461]
[1747232141219,78.44,177.13,177.03,76.64]
[1747232142619,78.44,177.13,177.02,3.6682]
[1747232143221,78.44,177.13,177.03,5.6476]
[1747232143415,78.44,177.13,177.02,3.6682]
[1747232143618,76.64,177.12,177.02,3.6682]
[1747232143819,94.85666158,177.12,177.02,1.8716]
[1747232144816,5.6476,177.04,177.02,1.8716]
[1747232145021,78.54,177.05,177.02,1.8716]
[1747232146022,5.6476,177.04,177.02,1.8716]
[1747232146525,362.0,177.11,177.02,1.8716]
[1747232146526,78.5,177.05,177.02,1.8716]
[1747232147021,5.6489,177.0,176.96,5.65]
[1747232147326,78.42,177.04,176.95,1.7873]
[1747232147520,78.64,177.03,177.0,5.6487]
[1747232147725,78.64,177.05,176.95,1.7873]
[1747232148025,5.6467,177.07,176.95,1.7873]
[1747232148322,35.13506158,177.3,176.97,18.21666158]
[1747232148521,487.98,177.2,177.12,5.6448]
[1747232148725,78.72,177.19,177.12,5.6448]
[1747232148922,78.72,177.19,177.07,76.64]
[1747232149328,487.98,177.2,177.07,76.64]
[1747232149525,79.14,177.2,177.07,76.64]
[1747232149731,5.6433,177.18,177.13,5.6445]
[1747232149930,79.14,177.2,177.07,76.64]
[1747232150830,18.21666158,177.19,177.06,5.3314]
[1747232151429,18.21666158,177.19,176.99,79.3]
[1747232151430,18.21666158,177.15,176.97,79.52]
[1747232151625,159.04,177.14,177.0,3.5792]
[1747232151823,5.6472,177.06,177.0,3.5792]
[1747232152126,79.52,177.08,177.0,3.5792]
[1747232152828,5.6468,177.07,177.02,5.6481]
[1747232153028,79.52,177.08,177.0,3.5792]
[1747232153230,79.82,177.11,177.01,2.03162163]
[1747232153528,79.82,177.11,177.02,81.53162163]
[1747232153828,79.82,177.11,177.03,2.03162163]
[1747232154028,5.6465,177.08,177.03,7.67922163]
[1747232154221,5.6465,177.08,177.03,5.6476]
[1747232154423,85.4654,177.11,177.02,79.5]
[1747232154619,79.76,177.12,177.03,2.04044718]
[1747232154823,79.76,177.12,177.04,2.04044718]
[1747232155022,79.76,177.12,177.05,2.04007422]
[1747232155230,79.76,177.12,177.06,2.04237297]
[1747232155529,79.74,177.12,177.07,5.6464]
[1747232155829,79.74,177.12,177.03,2.04244307]
[1747232156035,79.74,177.12,177.04,2.04244307]
[1747232156331,79.74,177.12,177.02,79.5]
[1747232156531,5.6464,177.08,177.03,7.69257074]
[1747232156729,79.5,177.11,177.02,79.5]
[1747232156925,79.5,177.11,177.03,2.04485444]
[1747232157131,362.0,177.1,177.0,3.5792]
[1747232157525,79.5,177.11,177.0,3.5792]
[1747232157725,79.5,177.11,176.94,79.5]
[1747232158027,18.21666158,177.04,176.95,2.04738201]
[1747232158326,18.26180752,176.97,176.78,1.9142]